[Event "DFMMLV 2024"]
[Site "Braunfels"]
[Date "2024.05.31"]
[Round "2.34"]
[White "Brandt, Carina"]
[Black "Skibbe, Diana"]
[Result "1-0"]
[ECO "C56"]
[WhiteElo "2038"]
[BlackElo "1942"]
[Annotator "RC"]
[PlyCount "163"]
[EventDate "2024.05.30"]
[EventType "team-tourn"]
[EventCountry "GER"]
[SourceTitle "playchess.com"]
[Source "ChessBase"]
[SourceQuality "1"]
[TimeControl "40/5400+30:1800+30"]

1. e4 {[%emt 0:00:03]} e5 {[%emt 0:00:01]} 2. Nf3 {[%emt 0:00:09]} Nc6 {[%emt 0:00:03]} 3. Bc4 {[%emt 0:00:07]} Nf6 {[%emt 0:01:04]} 4. d4 {[%emt 0:00:22]} exd4 {[%emt 0:00:20]} 5. e5 {[%emt 0:00:08]} d5 {[%emt 0:00:02]} 6. Bb5 {[%emt 0:00:08]} Ne4 {[%emt 0:00:03]} 7. Nxd4 {[%emt 0:00:13]} Bc5 {[%emt 0:02:23]} 8. O-O {[%emt 0:01:57]} Bd7 {[%emt 0:00:02]} 9. Bxc6 {[%emt 0:00:10]} bxc6 {[%emt 0:00:07]} 10. f3 {[%emt 0:00:14]} Ng5 {[%emt 0:00:18]} 11. f4 {[%emt 0:00:09]} Ne4 {[%emt 0:00:28]} 12. Be3 {[%emt 0:00:57]} Bxd4 {[%emt 0:08:15]} 13. Qxd4 {[%emt 0:01:38]} Bf5 {[%emt 0:00:19]} 14. Qa4 {[%emt 0:06:48]} Qd7 {[%emt 0:01:03]} 15. Qa3 {[%emt 0:01:21]} d4 {[%emt 0:01:19]} 16. Rd1 {[%emt 0:01:55]} c5 {[%emt 0:00:04]} 17. c3 {[%emt 0:06:05]} Bg4 {[%emt 0:01:16]} 18. Rd3 {[%emt 0:00:21]} O-O {[%emt 0:09:48]} 19. cxd4 {[%emt 0:01:32]} c4 {[%emt 0:00:08]} 20. Rc3 {[%emt 0:01:52]} Nxc3 {[%emt 0:00:20]} 21. Nxc3 {[%emt 0:00:56]} c6 {[%emt 0:05:38]} 22. b3 {[%emt 0:11:42]} cxb3 {[%emt 0:02:31]} 23. axb3 {[%emt 0:00:05]} Be6 {[%emt 0:00:16]} 24. Ne4 {[%emt 0:00:52]} Bd5 {[%emt 0:00:16]} 25. Nc5 {[%emt 0:00:12]} Qg4 {[%emt 0:01:54]} 26. Qb2 {[%emt 0:00:16]} h5 {[%emt 0:04:01]} 27. h3 {[%emt 0:07:45]} Qf5 {[%emt 0:02:16]} 28. Qb1 {[%emt 0:08:51]} Qxb1+ {[%emt 0:00:52]} 29. Rxb1 {[%emt 0:00:01]} Rfb8 {[%emt 0:01:36]} 30. Bd2 {[%emt 0:01:04]} Rb5 {[%emt 0:01:10]} 31. b4 {[%emt 0:02:41]} Rab8 {[%emt 0:10:46]} 32. Na6 {[%emt 0:05:05]} R8b7 {[%emt 0:00:13]} 33. Ra1 {[%emt 0:00:58]} Re7 {[%emt 0:00:33]} 34. Kf2 {[%emt 0:01:54]} h4 {[%emt 0:07:13]} 35. Kg1 {[%emt 0:10:10]} f6 {[%emt 0:02:05]} 36. Be1 {[%emt 0:00:51]} g5 {[%emt 0:03:14]} 37. exf6 {[%emt 0:08:13]} Re2 {[%emt 0:00:10]} 38. Nc7 {[%emt 0:00:38]} gxf4 {[%emt 0:06:58]} 39. Nxb5 {[%emt 0:01:24]} Rxg2+ {[%emt 0:00:12]} 40. Kf1 {[%emt 0:00:03]} cxb5 {[%emt 0:00:58]} 41. Bxh4 {[%emt 0:37:15]} f3 {[%emt 0:30:11]} 42. Bf2 {[%emt 0:00:14]} Kf7 {[%emt 0:03:52]} 43. Ra6 {[%emt 0:06:05]} Bc4+ {[%emt 0:06:21]} 44. Ke1 {[%emt 0:00:05]} Rg8 {[%emt 0:00:04]} 45. Bh4 {[%emt 0:03:45]} Rg2 {[%emt 0:00:12]} 46. Rxa7+ {[%emt 0:02:59]} Kf8 {[%emt 0:01:01]} 47. Bf2 {[%emt 0:02:27]} Rg6 {[%emt 0:00:56]} 48. Ra6 {[%emt 0:00:00]} Kf7 {[%emt 0:00:00]} 49. Kd2 {[%emt 0:00:00]} Be6 {[%emt 0:00:00]} 50. h4 {[%emt 0:00:00]} Rxf6 {[%emt 0:00:00]} 51. Ke3 {[%emt 0:00:00]} Rf5 {[%emt 0:00:00]} 52. Rc6 {[%emt 0:00:00]} Bc4 {[%emt 0:00:00]} 53. Ke4 {[%emt 0:00:00]} Rh5 {[%emt 0:00:00]} 54. Rc5 {[%emt 0:00:00]} Rh6 {[%emt 0:00:00]} 55. Kxf3 {[%emt 0:00:00]} Rf6+ {[%emt 0:00:00]} 56. Ke3 {[%emt 0:00:00]} Ra6 {[%emt 0:00:15]} 57. Rf5+ {[%emt 0:00:00]} Kg6 {[%emt 0:01:15]} 58. Re5 {[%emt 0:00:00]} Ra2 {[%emt 0:01:38]} 59. Be1 {[%emt 0:00:00]} Ra3+ {[%emt 0:01:56]} 60. Kf4 {[%emt 0:00:00]} Rd3 {[%emt 0:00:34]} 61. Ke4 {[%emt 0:00:53]} Rd1 {[%emt 0:00:52]} 62. h5+ {[%emt 0:00:40]} Kh7 {[%emt 0:03:02]} 63. Bf2 {[%emt 0:01:51]} Rb1 {[%emt 0:02:10]} 64. Be3 {[%emt 0:00:14]} Rxb4 {[%emt 0:01:07]} 65. Re7+ {[%emt 0:00:06]} Kg8 {[%emt 0:00:20]} 66. h6 {[%emt 0:00:28]} Ba2 {[%emt 0:00:37]} 67. Bg5 {[%emt 0:02:26]} Bb1+ {[%emt 0:01:00]} 68. Ke5 {[%emt 0:00:06]} Ra4 {[%emt 0:01:19]} 69. Rg7+ {[%emt 0:00:24]} Kf8 {[%emt 0:08:04]} 70. Be7+ {[%emt 0:00:14]} Ke8 {[%emt 0:00:04]} 71. h7 {[%emt 0:00:25]} Bxh7 {[%emt 0:00:04]} 72. Rxh7 {[%emt 0:00:05]} Kd7 {[%emt 0:03:40]} 73. d5 {[%emt 0:00:35]} Kc8 74. Bc5 {[%emt 0:06:23]} Ra2 {[%emt 0:02:02]} 75. Kd6 {[%emt 0:00:00]} Ra6+ {[%emt 0:00:19]} 76. Ke5 {[%emt 0:00:00]} Ra2 {[%emt 0:00:18]} 77. d6 {[%emt 0:00:00]} Rd2 {[%emt 0:01:27]} 78. Bb6 {[%emt 0:00:00]} b4 {[%emt 0:00:14]} 79. Rc7+ {[%emt 0:00:00]} Kb8 {[%emt 0:00:06]} 80. Ba7+ {[%emt 0:00:00]} Ka8 {[%emt 0:00:07]} 81. d7 {[%emt 0:00:00]} b3 {[%emt 0:00:17]} 82. Bd4 {[%emt 0:00:00]} 1-0

[Event "DFMMLV 2024"]
[Site "Braunfels"]
[Date "2024.05.31"]
[Round "2.35"]
[White "Dietrich, Mareike"]
[Black "Meyer, Bettina"]
[Result "0-1"]
[ECO "C06"]
[WhiteElo "1855"]
[BlackElo "1981"]
[Annotator "RC"]
[PlyCount "48"]
[EventDate "2024.05.30"]
[EventType "team-tourn"]
[EventCountry "GER"]
[SourceTitle "playchess.com"]
[Source "ChessBase"]
[SourceQuality "1"]
[TimeControl "40/5400+30:1800+30"]

1. e4 {[%emt 0:00:01]} e6 {[%emt 0:00:07]} 2. d4 {[%emt 0:00:06]} d5 {[%emt 0:00:09]} 3. Nd2 {[%emt 0:00:12]} Nf6 {[%emt 0:00:29]} 4. e5 {[%emt 0:00:06]} Nfd7 {[%emt 0:00:05]} 5. Bd3 {[%emt 0:00:06]} c5 {[%emt 0:00:13]} 6. c3 {[%emt 0:00:08]} Nc6 {[%emt 0:00:39]} 7. Ne2 {[%emt 0:00:27]} cxd4 {[%emt 0:00:17]} 8. cxd4 {[%emt 0:00:10]} f6 {[%emt 0:00:27]} 9. exf6 {[%emt 0:02:32]} Nxf6 {[%emt 0:00:09]} 10. O-O {[%emt 0:00:09]} Bd6 {[%emt 0:00:41]} 11. Nf3 {[%emt 0:00:04]} Qc7 {[%emt 0:01:25]} 12. h3 {[%emt 0:01:24]} O-O {[%emt 0:02:40]} 13. Re1 {[%emt 0:00:25]} Bd7 {[%emt 0:03:42]} 14. Be3 {[%emt 0:01:55]} Be8 {[%emt 0:04:49]} 15. Rc1 {[%emt 0:03:55]} Rc8 {[%emt 0:11:50]} 16. Nc3 {[%emt 0:02:03]} a6 {[%emt 0:05:25]} 17. Qd2 {[%emt 0:02:19]} Qd7 {[%emt 0:08:31]} 18. Bf4 {[%emt 0:05:11]} Ne4 {[%emt 0:05:27]} 19. Nxe4 {[%emt 0:21:02]} Bxf4 {[%emt 0:00:26]} 20. Nc5 {[%emt 0:00:04]} Bxd2 {[%emt 0:04:06]} 21. Nxd7 {[%emt 0:00:06]} Rxf3 {[%emt 0:00:33]} 22. Rxc6 {[%emt 0:02:04]} Rxc6 {[%emt 0:03:29]} 23. Ne5 {[%emt 0:01:37]} Bxe1 {[%emt 0:01:48]} 24. Nxf3 {[%emt 0:00:06]} Ba5 {[%emt 0:00:25]} 0-1

[Event "DFMMLV 2024"]
[Site "Braunfels"]
[Date "2024.05.31"]
[Round "2.36"]
[White "Kotyk, Valeriya"]
[Black "Ulrich, Helena Irene"]
[Result "1-0"]
[ECO "E92"]
[WhiteElo "1874"]
[BlackElo "1819"]
[Annotator "NA RC"]
[PlyCount "83"]
[EventDate "2024.05.30"]
[EventType "team-tourn"]
[EventCountry "GER"]
[SourceTitle "playchess.com"]
[Source "ChessBase"]
[SourceQuality "1"]
[TimeControl "40/5400+30:1800+30"]

1. d4 {[%emt 0:00:06]} Nf6 {[%emt 0:00:03]} 2. c4 {[%emt 0:00:15]} g6 {[%emt 0:00:05]} 3. Nc3 {[%emt 0:00:21]} Bg7 {[%emt 0:00:10]} 4. e4 {[%emt 0:00:39]} d6 {[%emt 0:00:07]} 5. Nf3 {[%emt 0:00:48]} O-O {[%emt 0:00:19]} 6. Be2 {[%emt 0:00:11]} e5 {[%emt 0:00:22]} 7. dxe5 {[%emt 0:00:12]} dxe5 {[%emt 0:00:05]} 8. Qxd8 {[%emt 0:00:22]} Rxd8 {[%emt 0:00:05]} 9. Bg5 {[%emt 0:00:18]} Re8 {[%emt 0:00:07]} 10. O-O {[%emt 0:01:08]} c6 {[%emt 0:05:06]} 11. Rfd1 {[%emt 0:00:25]} h6 {[%emt 0:04:03] E92: King's Indian: Classical: 6 Be2 e5: 7 dxe5, 7 Be3 and Petrosian System without 7...Nbd7.} 12. Be3 {[%emt 0:00:43]} Nbd7 {[%emt 0:01:46]} 13. Ne1 {[%emt 0:05:41]} Nf8 {[%emt 0:08:39]} 14. f3 {[%emt 0:03:06]} Ne6 {[%emt 0:03:26]} 15. g3 {[%emt 0:00:37]} Bf8 {[%emt 0:03:02]} 16. Nc2 {[%emt 0:00:53]} a5 {[%emt 0:04:31]} 17. Na4 {[%emt 0:03:45]} Nd7 {[%emt 0:04:52]} 18. a3 {[%emt 0:01:23]} Ndc5 {[%emt 0:03:40]} 19. Nxc5 {[%emt 0:00:22]} Bxc5 $11 {[%emt 0:01:48]} 20. Bxc5 {[%emt 0:02:07]} Nxc5 {[%emt 0:00:05]} 21. b4 {[%emt 0:00:38]} Nd7 {[%emt 0:02:49]} 22. Ne3 {[%emt 0:04:25]} Nf6 {[%emt 0:07:12]} 23. c5 {[%emt 0:02:13]} Be6 {[%emt 0:05:02]} 24. Bc4 {[%emt 0:00:14]} a4 {[%emt 0:12:21]} 25. Bxe6 {[%emt 0:01:04]} Rxe6 {[%emt 0:00:42]} 26. Nc4 {[%emt 0:00:46]} Re7 {[%emt 0:02:56]} 27. Rd3 {[%emt 0:00:45]} Kg7 {[%emt 0:08:22]} 28. Rad1 {[%emt 0:00:30]} Ree8 {[%emt 0:01:56]} 29. Nb6 {[%emt 0:04:13]} Ra7 {[%emt 0:00:56]} 30. Rd8 {[%emt 0:01:31]} Kf8 {[%emt 0:05:12]} 31. Rxe8+ {[%emt 0:03:18]} Nxe8 {[%emt 0:00:50]} 32. Rd7 {[%emt 0:01:13]} Nf6 {[%emt 0:01:21]} 33. Rd3 {[%emt 0:07:14]} Kg7 {[%emt 0:05:31]} 34. Nc4 {[%emt 0:00:31]} Ra8 {[%emt 0:03:39]} 35. Nxe5 {[%emt 0:00:15]} Re8 {[%emt 0:00:34]} 36. Nc4 {[%emt 0:00:14]} Ra8 {[%emt 0:00:36]} 37. Nb6 {[%emt 0:00:34]} Ra7 {[%emt 0:00:18]} 38. Kf2 {[%emt 0:00:31]} Kf8 {[%emt 0:00:45]} 39. h3 {[%emt 0:00:49]} Kg7 {[%emt 0:06:37]} 40. e5 {[%emt 0:06:09]} Ng8 {[%emt 0:00:00]} 41. Rd7 {[%emt 0:30:49]} h5 {[%emt 0:28:37]} 42. e6 {[%emt 0:04:23]} 1-0

[Event "DFMMLV 2024"]
[Site "Braunfels"]
[Date "2024.05.31"]
[Round "2.37"]
[White "Geletzke, Hannah"]
[Black "Sural, Ceren"]
[Result "1-0"]
[ECO "B50"]
[WhiteElo "1753"]
[BlackElo "1793"]
[Annotator "NA RC"]
[PlyCount "75"]
[EventDate "2024.05.30"]
[EventType "team-tourn"]
[EventCountry "GER"]
[SourceTitle "playchess.com"]
[Source "ChessBase"]
[SourceQuality "1"]
[TimeControl "40/5400+30:1800+30"]

1. e4 {[%emt 0:00:02]} c5 {[%emt 0:00:08]} 2. Nf3 {[%emt 0:00:42]} d6 {[%emt 0:00:11]} 3. c3 {[%emt 0:00:19]} Nf6 {[%emt 0:02:59]} 4. Bd3 {[%emt 0:01:12]} Nc6 {[%emt 0:04:12]} 5. h3 {[%emt 0:00:46]} e6 {[%emt 0:04:34]} 6. Bc2 {[%emt 0:01:16]} Qc7 {[%emt 0:08:34]} 7. O-O {[%emt 0:02:17]} Be7 {[%emt 0:07:59]} 8. d4 {[%emt 0:01:28]} cxd4 {[%emt 0:08:42]} 9. cxd4 {[%emt 0:00:47]} Bd7 {[%emt 0:01:58]} 10. Nc3 {[%emt 0:04:01]} Nb4 {[%emt 0:14:30]} 11. Bb1 {[%emt 0:04:55]} e5 {[%emt 0:06:45]} 12. a3 {[%emt 0:13:27]} Na6 {[%emt 0:03:25]} 13. Ba2 {[%emt 0:11:37]} O-O {[%emt 0:04:50]} 14. Ng5 {[%emt 0:04:53]} h6 {[%emt 0:03:30]} 15. Nf3 {[%emt 0:01:15]} Rad8 {[%emt 0:08:11]} 16. Re1 {[%emt 0:07:47]} Qb8 {[%emt 0:08:07]} 17. Nh4 {[%emt 0:08:17]} Kh8 {[%emt 0:04:29]} 18. Nf5 {[%emt 0:01:01]} Bxf5 {[%emt 0:01:50]} 19. exf5 {[%emt 0:00:17]} Ng8 {[%emt 0:02:29]} 20. Qh5 {[%emt 0:07:38]} Nf6 {[%emt 0:00:51]} 21. Qd1 {[%emt 0:01:23]} Ng8 {[%emt 0:01:15]} 22. Be3 {[%emt 0:07:45]} exd4 {[%emt 0:01:08]} 23. Bxd4 {[%emt 0:00:40]} Bf6 {[%emt 0:00:21]} 24. Nd5 {[%emt 0:02:47]} Nc7 {[%emt 0:00:47]} 25. Nxf6 {[%emt 0:02:28]} gxf6 {[%emt 0:00:30]} 26. Qh5 {[%emt 0:01:28]} Ne8 {[%emt 0:00:18]} 27. Bxf7 {[%emt 0:13:32]} Ng7 {[%emt 0:00:41]} 28. Qg6 {[%emt 0:00:00]} Qc7 {[%emt 0:00:33]} 29. Bxg8 {[%emt 0:00:00]} Kxg8 {[%emt 0:00:03]} 30. Bxf6 {[%emt 0:00:00]} Rd7 {[%emt 0:00:49]} 31. Rac1 {[%emt 0:00:00]} Qb6 {[%emt 0:00:33]} 32. Re7 {[%emt 0:00:00]} Rxe7 {[%emt 0:00:31]} 33. Bxe7 {[%emt 0:00:00]} Qxb2 {[%emt 0:00:27]} 34. Qxh6 {[%emt 0:02:29]} Re8 {[%emt 0:00:44]} 35. Bf6 {[%emt 0:00:27]} Qxc1+ {[%emt 0:00:20]} 36. Qxc1 {[%emt 0:00:03]} Kf7 {[%emt 0:00:00]} 37. Bxg7 {[%emt 0:00:00]} Kxg7 {[%emt 0:00:00]} 38. Qc7+ {[%emt 0:00:19]} 1-0

[Event "DFMMLV 2024"]
[Site "Braunfels"]
[Date "2024.05.31"]
[Round "2.38"]
[White "Darvish Ghane, Luisa Marie"]
[Black "Loos, Tilda"]
[Result "1-0"]
[ECO "B31"]
[WhiteElo "1810"]
[BlackElo "1667"]
[Annotator "NA RC"]
[PlyCount "83"]
[EventDate "2024.05.30"]
[EventType "team-tourn"]
[EventCountry "GER"]
[SourceTitle "playchess.com"]
[Source "ChessBase"]
[SourceQuality "1"]
[TimeControl "40/5400+30:1800+30"]

1. e4 {[%emt 0:00:01]} c5 {[%emt 0:00:04]} 2. Nf3 {[%emt 0:00:07]} Nc6 {[%emt 0:00:04]} 3. Bb5 {[%emt 0:00:37]} g6 {[%emt 0:00:11]} 4. Bxc6 {[%emt 0:00:27]} bxc6 {[%emt 0:00:01]} 5. O-O {[%emt 0:00:36]} Bg7 {[%emt 0:00:09]} 6. d3 {[%emt 0:00:31]} d6 {[%emt 0:02:18]} 7. c3 {[%emt 0:04:50]} Bg4 {[%emt 0:03:21]} 8. h3 {[%emt 0:00:21]} Bxf3 {[%emt 0:01:39]} 9. Qxf3 {[%emt 0:00:16]} e5 {[%emt 0:00:27]} 10. c4 {[%emt 0:05:06]} Nf6 {[%emt 0:02:40]} 11. Nc3 {[%emt 0:02:23]} O-O {[%emt 0:01:28]} 12. Bg5 {[%emt 0:05:52]} Qe7 {[%emt 0:02:38]} 13. Rab1 {[%emt 0:03:22]} Qe6 {[%emt 0:04:00]} 14. b4 {[%emt 0:04:31]} cxb4 {[%emt 0:02:42]} 15. Rxb4 {[%emt 0:00:14]} Nd7 {[%emt 0:03:14]} 16. Be3 {[%emt 0:03:24]} Nc5 {[%emt 0:10:34]} 17. Bxc5 {[%emt 0:02:01]} dxc5 {[%emt 0:00:08]} 18. Rb7 {[%emt 0:00:32]} Rfd8 {[%emt 0:02:56]} 19. Na4 {[%emt 0:08:28]} Bf8 {[%emt 0:01:16]} 20. Rfb1 {[%emt 0:02:56]} Rd7 {[%emt 0:02:45]} 21. R1b3 {[%emt 0:12:19]} Rad8 {[%emt 0:04:01]} 22. Nb2 {[%emt 0:09:07]} Rxb7 {[%emt 0:03:28]} 23. Rxb7 {[%emt 0:00:10]} Rd7 {[%emt 0:00:23]} 24. Rxd7 {[%emt 0:03:07]} Qxd7 {[%emt 0:00:02]} 25. Qd1 {[%emt 0:03:00]} Qb7 {[%emt 0:00:55]} 26. Qb3 {[%emt 0:00:14]} Qc7 {[%emt 0:00:51]} 27. a4 {[%emt 0:04:23]} Bh6 {[%emt 0:06:21]} 28. Qc3 {[%emt 0:03:00]} Bg7 {[%emt 0:01:39]} 29. Kf1 {[%emt 0:01:47]} Qb6 {[%emt 0:02:00]} 30. Ke2 {[%emt 0:01:11]} f5 {[%emt 0:00:34]} 31. a5 {[%emt 0:01:49]} Qb7 {[%emt 0:00:55]} 32. Na4 {[%emt 0:02:23]} Qe7 {[%emt 0:04:46]} 33. Qb3 {[%emt 0:02:39]} fxe4 {[%emt 0:01:23]} 34. dxe4 {[%emt 0:00:43]} Bh6 {[%emt 0:03:55]} 35. Qb8+ {[%emt 0:05:45]} Kf7 {[%emt 0:00:10]} 36. a6 {[%emt 0:00:37]} Qg5 {[%emt 0:06:20]} 37. Qxa7+ {[%emt 0:01:38]} Kg8 {[%emt 0:00:43]} 38. Qb8+ {[%emt 0:00:54]} Kf7 {[%emt 0:00:15]} 39. Qc7+ {[%emt 0:00:21]} Kg8 {[%emt 0:00:24]} 40. Qc8+ {[%emt 0:00:34]} Kf7 {[%emt 0:00:21]} 41. Qd7+ {[%emt 0:30:11]} Kf8 {[%emt 0:30:25]} 42. a7 {[%emt 0:00:24]} 1-0

[Event "DFMMLV 2024"]
[Site "Braunfels"]
[Date "2024.05.31"]
[Round "2.39"]
[White "Kohl, Natalie"]
[Black "Neumann, Ramona"]
[Result "1/2-1/2"]
[ECO "C01"]
[WhiteElo "1683"]
[BlackElo "1774"]
[Annotator "NA RC"]
[PlyCount "47"]
[EventDate "2024.05.30"]
[EventType "team-tourn"]
[EventCountry "GER"]
[SourceTitle "playchess.com"]
[Source "ChessBase"]
[SourceQuality "1"]
[TimeControl "40/5400+30:1800+30"]

1. e4 {[%emt 0:00:16]} e6 {[%emt 0:00:08]} 2. c3 {[%emt 0:01:14]} d5 {[%emt 0:01:17]} 3. exd5 {[%emt 0:03:02]} exd5 {[%emt 0:00:11]} 4. d4 {[%emt 0:00:47]} Nc6 {[%emt 1:30:54]} 5. Nf3 {[%emt 0:03:14]} Bd6 {[%emt 0:00:00]} 6. Na3 {[%emt 0:07:40]} a6 {[%emt 0:00:00]} 7. Bd3 {[%emt 0:12:04]} Bg4 {[%emt 0:00:00]} 8. h3 {[%emt 0:11:34]} Bh5 {[%emt 0:00:00]} 9. Qe2+ {[%emt 0:01:27]} Qe7 {[%emt 0:00:00]} 10. O-O {[%emt 0:12:21]} Qxe2 {[%emt 0:00:00]} 11. Bxe2 {[%emt 0:00:48]} Nf6 {[%emt 0:00:00]} 12. Bg5 {[%emt 0:03:29]} Ne4 {[%emt 0:00:00]} 13. Rfe1 {[%emt 0:01:41]} O-O {[%emt 0:00:00]} 14. Nd2 {[%emt 0:05:04]} Nxg5 {[%emt 0:00:00]} 15. Bxh5 {[%emt 0:00:33]} Rfe8 {[%emt 0:00:00]} 16. Nc2 {[%emt 0:04:04]} Bf4 {[%emt 0:00:00]} 17. Nf3 {[%emt 0:02:40]} Ne4 {[%emt 0:00:00]} 18. g3 {[%emt 0:08:54]} Bd6 {[%emt 0:00:00]} 19. Bg4 {[%emt 0:03:20]} Nf6 {[%emt 0:00:00]} 20. Ne3 {[%emt 0:02:32]} Ne7 {[%emt 0:00:00]} 21. Nf5 {[%emt 0:03:37]} Nxf5 {[%emt 0:00:00]} 22. Bxf5 {[%emt 0:00:14]} Ne4 {[%emt 0:00:00]} 23. Bxe4 {[%emt 0:02:01]} dxe4 {[%emt 0:00:00]} 24. Nd2 {[%emt 0:01:11]} 1/2-1/2

[Event "DFMMLV 2024"]
[Site "Braunfels"]
[Date "2024.05.31"]
[Round "2.40"]
[White "Hoelzer, Jeanette"]
[Black "Scheiding, Sophia"]
[Result "1/2-1/2"]
[ECO "C42"]
[WhiteElo "1791"]
[BlackElo "1629"]
[Annotator "NA RC"]
[PlyCount "74"]
[EventDate "2024.05.30"]
[EventType "team-tourn"]
[EventCountry "GER"]
[SourceTitle "playchess.com"]
[Source "ChessBase"]
[SourceQuality "1"]
[TimeControl "40/5400+30:1800+30"]

1. e4 {[%emt 0:00:02]} e5 {[%emt 0:00:06]} 2. Nf3 {[%emt 0:00:07]} Nf6 {[%emt 0:00:03]} 3. Nxe5 {[%emt 0:00:26]} d6 {[%emt 0:00:06]} 4. Nf3 {[%emt 0:00:25]} Nxe4 {[%emt 0:00:10]} 5. Nc3 {[%emt 0:00:30]} Nf6 {[%emt 0:00:29]} 6. Be2 {[%emt 0:11:29]} Be7 {[%emt 0:00:09]} 7. d3 {[%emt 0:03:12]} O-O {[%emt 0:00:31]} 8. Be3 {[%emt 0:03:23]} Nc6 {[%emt 0:01:15]} 9. Qd2 {[%emt 0:03:30]} d5 {[%emt 0:01:11]} 10. d4 {[%emt 0:08:31]} Bf5 {[%emt 0:06:54]} 11. Nh4 {[%emt 0:10:33]} Bd7 {[%emt 0:02:59]} 12. Nf3 {[%emt 0:05:11]} a6 {[%emt 0:08:14]} 13. Bg5 {[%emt 0:04:36]} Be6 {[%emt 0:06:16]} 14. O-O {[%emt 0:06:37]} Ne4 {[%emt 0:06:12]} 15. Nxe4 {[%emt 0:04:02]} dxe4 {[%emt 0:00:10]} 16. Bxe7 {[%emt 0:01:00]} Qxe7 {[%emt 0:01:20]} 17. Ng5 {[%emt 0:07:13]} Bf5 {[%emt 0:11:25]} 18. Bc4 {[%emt 0:06:09]} Bg6 {[%emt 0:03:08]} 19. c3 {[%emt 0:01:06]} Rad8 {[%emt 0:01:34]} 20. b4 {[%emt 0:04:12]} Ne5 {[%emt 0:03:48]} 21. Bb3 {[%emt 0:01:23]} Ng4 {[%emt 0:02:47]} 22. Nh3 {[%emt 0:02:26]} Rfe8 {[%emt 0:07:44]} 23. Rfe1 {[%emt 0:02:58]} Qd6 {[%emt 0:11:58]} 24. Qf4 {[%emt 0:02:21]} Nf6 {[%emt 0:02:35]} 25. Qxd6 {[%emt 0:01:20]} Rxd6 {[%emt 0:00:35]} 26. Nf4 {[%emt 0:01:27]} Bf5 {[%emt 0:02:34]} 27. h3 {[%emt 0:01:22]} g5 {[%emt 0:00:53]} 28. Ne2 {[%emt 0:01:46]} h5 {[%emt 0:00:50]} 29. Ng3 {[%emt 0:02:18]} Bg6 {[%emt 0:00:18]} 30. Rad1 {[%emt 0:00:55]} h4 {[%emt 0:02:20]} 31. Nf1 {[%emt 0:00:13]} Bh5 {[%emt 0:04:51]} 32. Rd2 {[%emt 0:00:42]} Rdd8 {[%emt 0:01:20]} 33. Ne3 {[%emt 0:00:55]} Bg6 {[%emt 0:01:09]} 34. Rde2 {[%emt 0:00:38]} Kf8 {[%emt 0:01:30]} 35. Bc2 {[%emt 0:00:32]} b5 {[%emt 0:02:57]} 36. Ng4 {[%emt 0:01:12]} Nd5 {[%emt 0:01:30]} 37. Ne5 {[%emt 0:02:59]} Bh7 {[%emt 0:01:57]} 1/2-1/2

[Event "DFMMLV 2024"]
[Site "Braunfels"]
[Date "2024.05.31"]
[Round "2.44"]
[White "Storkebaum, Ulrike"]
[Black "Mader, Lena"]
[Result "1-0"]
[ECO "B15"]
[WhiteElo "1811"]
[BlackElo "1902"]
[Annotator "NA RC"]
[PlyCount "97"]
[EventDate "2024.05.30"]
[EventType "team-tourn"]
[EventCountry "GER"]
[SourceTitle "playchess.com"]
[Source "ChessBase"]
[SourceQuality "1"]
[TimeControl "40/5400+30:1800+30"]

1. e4 {[%emt 0:00:03]} c6 {[%emt 0:00:04]} 2. d4 {[%emt 0:00:04]} d5 {[%emt 0:00:03]} 3. Nc3 {[%emt 0:00:04]} dxe4 {[%emt 0:00:09]} 4. Nxe4 {[%emt 0:00:07]} Nf6 {[%emt 0:00:06]} 5. Ng3 {[%emt 0:00:26]} Bg4 {[%emt 0:03:57]} 6. f3 {[%emt 0:03:53]} Bd7 {[%emt 0:01:06]} 7. Bd3 {[%emt 0:00:39]} e6 {[%emt 0:00:47]} 8. N1e2 {[%emt 0:00:24]} c5 {[%emt 0:01:06]} 9. c3 {[%emt 0:03:32]} Nc6 {[%emt 0:01:43]} 10. Be3 {[%emt 0:02:05]} cxd4 {[%emt 0:03:52]} 11. Nxd4 {[%emt 0:00:33]} Be7 {[%emt 0:01:29]} 12. Qd2 {[%emt 0:01:36]} Nd5 {[%emt 0:05:12]} 13. Nxc6 {[%emt 0:04:08]} Bxc6 {[%emt 0:00:56]} 14. Bd4 {[%emt 0:00:53]} Bf6 {[%emt 0:06:18]} 15. Bxf6 {[%emt 0:00:29]} Qxf6 {[%emt 0:00:34]} 16. O-O-O {[%emt 0:07:15]} Qf4 {[%emt 0:08:17]} 17. Ne2 $11 {[%emt 0:06:08]} Qxd2+ {[%emt 0:05:09]} 18. Rxd2 {[%emt 0:00:13]} O-O-O {[%emt 0:00:30]} 19. Nd4 {[%emt 0:01:54]} Kc7 {[%emt 0:03:04]} 20. Nxc6 {[%emt 0:02:19]} Kxc6 {[%emt 0:01:09]} 21. Be4 {[%emt 0:01:43]} Kc7 {[%emt 0:04:32]} 22. Bxd5 {[%emt 0:02:31]} Rxd5 {[%emt 0:00:20]} 23. Rxd5 {[%emt 0:00:14]} exd5 {[%emt 0:00:01]} 24. Re1 {[%emt 0:00:18]} Kd6 {[%emt 0:05:05]} 25. Kc2 {[%emt 0:00:11]} Rc8 {[%emt 0:03:03]} 26. Kd3 {[%emt 0:00:57]} Rc7 {[%emt 0:02:34]} 27. b3 {[%emt 0:03:06]} Rd7 {[%emt 0:10:07]} 28. Kd4 {[%emt 0:00:44]} Kc6 {[%emt 0:05:52]} 29. f4 {[%emt 0:03:25]} b5 {[%emt 0:06:24]} 30. f5 {[%emt 0:01:26]} a5 {[%emt 0:00:27]} 31. Re8 {[%emt 0:02:40]} g6 {[%emt 0:10:53]} 32. g4 {[%emt 0:02:32]} Ra7 {[%emt 0:08:23]} 33. Rc8+ {[%emt 0:02:51]} Kb6 {[%emt 0:01:33]} 34. f6 {[%emt 0:02:10]} b4 {[%emt 0:00:56]} 35. Kxd5 {[%emt 0:09:00]} Rd7+ {[%emt 0:01:03]} 36. Ke5 {[%emt 0:03:40]} bxc3 {[%emt 0:00:02]} 37. Rxc3 {[%emt 0:00:42]} Rd2 {[%emt 0:00:00]} 38. Rh3 {[%emt 0:01:32]} Re2+ {[%emt 0:01:26]} 39. Kf4 {[%emt 0:01:28]} Rxa2 {[%emt 0:00:23]} 40. Rxh7 {[%emt 0:00:21]} Rb2 {[%emt 0:00:38]} 41. Rxf7 {[%emt 0:33:26]} Rxb3 {[%emt 0:30:06]} 42. Rf8 {[%emt 0:00:06]} a4 {[%emt 0:00:00]} 43. f7 {[%emt 0:00:00]} g5+ {[%emt 0:00:00]} 44. Kxg5 {[%emt 0:00:00]} Rf3 {[%emt 0:00:00]} 45. Rb8+ {[%emt 0:00:00]} Ka5 {[%emt 0:00:00]} 46. f8=Q {[%emt 0:00:00]} Rxf8 {[%emt 0:00:00]} 47. Rxf8 {[%emt 0:00:00]} a3 {[%emt 0:00:00]} 48. Ra8+ {[%emt 0:00:00]} Kb4 {[%emt 0:00:00]} 49. Rxa3 {[%emt 0:00:00]} 1-0